[Event "*** Titled Tuesday Blitz"]
[Site "Chess.com"]
[Date "2021.04.20"]
[Round "7"]
[White "guillembaches"]
[Black "AsaHoffmann"]
[Result "1-0"]
[WhiteElo "2511"]
[BlackElo "2350"]
[TimeControl "180+1"]
[EndTime "11:17:37 PDT"]
[Termination "guillembaches won on time"]

1. e4 {[%clk 0:03:00.9]} 1... d6 {[%clk 0:02:54.9]} 2. d4 {[%clk 0:03:00.9]}
2... Nf6 {[%clk 0:02:54.3]} 3. f3 {[%clk 0:03:00.8]} 3... c6 {[%clk 0:02:53.3]}
4. Be3 {[%clk 0:02:58.8]} 4... Nbd7 {[%clk 0:02:53]} 5. c4 {[%clk 0:02:58.4]}
5... e5 {[%clk 0:02:52.7]} 6. Nc3 {[%clk 0:02:58.5]} 6... Be7 {[%clk 0:02:51.9]}
7. Qd2 {[%clk 0:02:58.7]} 7... a6 {[%clk 0:02:51.8]} 8. O-O-O {[%clk 0:02:54.7]}
8... b5 {[%clk 0:02:51.5]} 9. Kb1 {[%clk 0:02:54.3]} 9... b4 {[%clk 0:02:50]}
10. Na4 {[%clk 0:02:48.8]} 10... c5 {[%clk 0:02:49.1]} 11. dxc5 {[%clk
0:02:42.7]} 11... dxc5 {[%clk 0:02:45.3]} 12. Nxc5 {[%clk 0:02:33.3]} 12... Nxc5
{[%clk 0:02:31.9]} 13. Qxd8+ {[%clk 0:02:31.2]} 13... Bxd8 {[%clk 0:02:31.7]}
14. Bxc5 {[%clk 0:02:31.3]} 14... Be7 {[%clk 0:02:31.6]} 15. Be3 {[%clk
0:02:16.4]} 15... Be6 {[%clk 0:02:30.1]} 16. g4 {[%clk 0:02:08.9]} 16... h6
{[%clk 0:02:29.3]} 17. Nh3 {[%clk 0:02:03.3]} 17... O-O {[%clk 0:02:26.1]} 18.
g5 {[%clk 0:01:57.6]} 18... hxg5 {[%clk 0:02:21.4]} 19. Nxg5 {[%clk 0:01:57.2]}
19... Bd7 {[%clk 0:02:12.8]} 20. h4 {[%clk 0:01:49]} 20... Bc6 {[%clk
0:02:12.2]} 21. h5 {[%clk 0:01:44.2]} 21... Rfd8 {[%clk 0:02:09.2]} 22. Rxd8+
{[%clk 0:01:43]} 22... Rxd8 {[%clk 0:02:07.7]} 23. Be2 {[%clk 0:01:40.4]} 23...
a5 {[%clk 0:02:00.2]} 24. h6 {[%clk 0:01:36.1]} 24... gxh6 {[%clk 0:01:57.2]}
25. Rxh6 {[%clk 0:01:36.5]} 25... Kg7 {[%clk 0:01:54.3]} 26. Rh1 {[%clk
0:01:36.4]} 26... a4 {[%clk 0:01:49.4]} 27. Kc2 {[%clk 0:01:35.3]} 27... Rc8
{[%clk 0:01:42.1]} 28. b3 {[%clk 0:01:26]} 28... axb3+ {[%clk 0:01:39.3]} 29.
axb3 {[%clk 0:01:26.1]} 29... Ra8 {[%clk 0:01:38.8]} 30. Kb2 {[%clk 0:01:22.8]}
30... Nd7 {[%clk 0:01:35.4]} 31. Ra1 {[%clk 0:00:59.2]} 31... Rh8 {[%clk
0:01:31.5]} 32. Kc2 {[%clk 0:00:51.2]} 32... Rh2 {[%clk 0:01:27.6]} 33. Kd3
{[%clk 0:00:49.1]} 33... Nc5+ {[%clk 0:00:58.1]} 34. Bxc5 {[%clk 0:00:44.9]}
34... Bxc5 {[%clk 0:00:57.8]} 35. Ra6 {[%clk 0:00:42.4]} 35... Be8 {[%clk
0:00:54.8]} 36. Ra8 {[%clk 0:00:28.3]} 36... Kf8 {[%clk 0:00:54.4]} 37. Rc8
{[%clk 0:00:24.9]} 37... Be7 {[%clk 0:00:53.8]} 38. f4 {[%clk 0:00:21.4]} 38...
exf4 {[%clk 0:00:52.7]} 39. Nf3 {[%clk 0:00:21.9]} 39... Rh1 {[%clk 0:00:45.1]}
40. e5 {[%clk 0:00:20.4]} 40... Rc1 {[%clk 0:00:43.7]} 41. Ke4 {[%clk
0:00:19.4]} 41... Rc3 {[%clk 0:00:38.9]} 42. Kxf4 {[%clk 0:00:18.2]} 42... Rxb3
{[%clk 0:00:38.8]} 43. c5 {[%clk 0:00:18.2]} 43... Rc3 {[%clk 0:00:38.2]} 44. c6
{[%clk 0:00:17.2]} 44... Rxc6 {[%clk 0:00:37]} 45. Rb8 {[%clk 0:00:16.9]} 45...
Rc3 {[%clk 0:00:30.7]} 46. Bb5 {[%clk 0:00:16.8]} 46... Kg7 {[%clk 0:00:20]} 47.
Rxe8 {[%clk 0:00:16.1]} 47... b3 {[%clk 0:00:14.5]} 48. Rxe7 {[%clk 0:00:15]}
48... b2 {[%clk 0:00:14.1]} 49. Bd3 {[%clk 0:00:14.3]} 49... Rxd3 {[%clk
0:00:12.8]} 50. Rb7 {[%clk 0:00:14.9]} 50... Rc3 {[%clk 0:00:11.4]} 51. Rxb2
{[%clk 0:00:14.7]} 51... Rc4+ {[%clk 0:00:10.9]} 52. Kf5 {[%clk 0:00:15]} 52...
Rc3 {[%clk 0:00:09.6]} 53. Ng5 {[%clk 0:00:14.5]} 53... Rc1 {[%clk 0:00:08.3]}
54. Rb7 {[%clk 0:00:14.2]} 54... Rf1+ {[%clk 0:00:07.7]} 55. Kg4 {[%clk
0:00:14.3]} 55... Rg1+ {[%clk 0:00:07.4]} 56. Kf4 {[%clk 0:00:14.6]} 56... Rf1+
{[%clk 0:00:07.2]} 57. Nf3 {[%clk 0:00:14.4]} 57... Kg6 {[%clk 0:00:04.9]} 58.
Rb6+ {[%clk 0:00:14.2]} 58... Kg7 {[%clk 0:00:04.1]} 59. Rf6 {[%clk 0:00:13.3]}
59... Rf2 {[%clk 0:00:01.5]} 60. Rf5 {[%clk 0:00:13]} 60... Rf1 {[%clk
0:00:01.2]} 61. Rg5+ {[%clk 0:00:12.7]} 1-0

[Event "*** Titled Tuesday Blitz"]
[Site "Chess.com"]
[Date "2021.04.20"]
[Round "7"]
[White "Arystanner"]
[Black "ckgchess"]
[Result "1-0"]
[WhiteElo "2809"]
[BlackElo "2695"]
[TimeControl "180+1"]
[EndTime "11:17:40 PDT"]
[Termination "Arystanner won by resignation"]

1. e4 {[%clk 0:03:00.9]} 1... c5 {[%clk 0:02:59.8]} 2. Nf3 {[%clk 0:03:01.3]}
2... d6 {[%clk 0:03:00.1]} 3. d4 {[%clk 0:03:01.8]} 3... cxd4 {[%clk 0:03:01]}
4. Nxd4 {[%clk 0:03:02.5]} 4... Nf6 {[%clk 0:03:01.7]} 5. Nc3 {[%clk 0:03:03.1]}
5... a6 {[%clk 0:03:01.5]} 6. Rg1 {[%clk 0:03:03.1]} 6... e5 {[%clk 0:02:49.1]}
7. Nb3 {[%clk 0:03:03.3]} 7... Be6 {[%clk 0:02:49.1]} 8. g4 {[%clk 0:03:03.4]}
8... d5 {[%clk 0:02:49.8]} 9. exd5 {[%clk 0:03:04.3]} 9... Nxd5 {[%clk
0:02:50.5]} 10. Nxd5 {[%clk 0:03:04.8]} 10... Qxd5 {[%clk 0:02:51.4]} 11. Qxd5
{[%clk 0:03:04.7]} 11... Bxd5 {[%clk 0:02:52.3]} 12. Be3 {[%clk 0:03:05.5]}
12... Nc6 {[%clk 0:02:51.9]} 13. O-O-O {[%clk 0:03:05.6]} 13... O-O-O {[%clk
0:02:32.3]} 14. Bb6 {[%clk 0:03:04.4]} 14... Rd7 {[%clk 0:02:31.2]} 15. a3
{[%clk 0:03:04.7]} 15... Be7 {[%clk 0:02:22.9]} 16. g5 {[%clk 0:03:04.3]} 16...
Be6 {[%clk 0:02:15.2]} 17. Rxd7 {[%clk 0:02:58.7]} 17... Bxd7 {[%clk 0:02:16.1]}
18. Bc4 {[%clk 0:02:56.3]} 18... Be6 {[%clk 0:02:08.4]} 19. Bxe6+ {[%clk
0:02:45.4]} 19... fxe6 {[%clk 0:02:09.3]} 20. Nd2 {[%clk 0:02:26.3]} 20... Rf8
{[%clk 0:02:06.9]} 21. Be3 {[%clk 0:02:17.8]} 21... Nd4 {[%clk 0:01:56.3]} 22.
Kd1 {[%clk 0:02:13.7]} 22... Nf3 {[%clk 0:01:41.7]} 23. Rg3 {[%clk 0:01:32.4]}
23... Nxd2 {[%clk 0:01:41.3]} 24. Kxd2 {[%clk 0:01:29.4]} 24... Kd7 {[%clk
0:01:38.7]} 25. Kd3 {[%clk 0:01:23.9]} 25... Kd6 {[%clk 0:01:31.5]} 26. a4
{[%clk 0:01:01.9]} 26... b5 {[%clk 0:01:27.5]} 27. Rg4 {[%clk 0:01:00.7]} 27...
Kd5 {[%clk 0:01:20.7]} 28. b3 {[%clk 0:00:55.3]} 28... b4 {[%clk 0:01:09.3]} 29.
Rc4 {[%clk 0:00:40.7]} 29... Rf3 {[%clk 0:01:04.8]} 30. h4 {[%clk 0:00:20.5]}
30... Bd6 {[%clk 0:01:02.3]} 31. Rc8 {[%clk 0:00:14.3]} 31... e4+ {[%clk
0:01:01.9]} 32. Ke2 {[%clk 0:00:14.3]} 32... Rh3 {[%clk 0:01:00.1]} 33. Ra8
{[%clk 0:00:14.5]} 33... Rxh4 {[%clk 0:00:41]} 34. Rxa6 {[%clk 0:00:14]} 34...
h5 {[%clk 0:00:41.2]} 35. gxh6 {[%clk 0:00:13.7]} 35... gxh6 {[%clk 0:00:42.1]}
36. Ra8 {[%clk 0:00:12.8]} 36... Rh1 {[%clk 0:00:40]} 37. a5 {[%clk 0:00:13.3]}
37... h5 {[%clk 0:00:38.1]} 38. a6 {[%clk 0:00:13.2]} 38... h4 {[%clk
0:00:16.9]} 39. a7 {[%clk 0:00:13.3]} 39... h3 {[%clk 0:00:17.6]} 40. Rh8 {[%clk
0:00:12]} 40... Ra1 {[%clk 0:00:17]} 41. a8=Q+ {[%clk 0:00:10.3]} 41... Rxa8
{[%clk 0:00:17.9]} 42. Rxa8 {[%clk 0:00:10.9]} 42... Be5 {[%clk 0:00:18.4]} 43.
Kf1 {[%clk 0:00:10.7]} 43... Kd6 {[%clk 0:00:16.6]} 44. Ra6+ {[%clk 0:00:09.6]}
44... Ke7 {[%clk 0:00:16.8]} 45. Kg1 {[%clk 0:00:08.7]} 45... Kf6 {[%clk
0:00:17.1]} 46. Rc6 {[%clk 0:00:08.6]} 46... Kf5 {[%clk 0:00:15.9]} 47. Rc4
{[%clk 0:00:09.2]} 47... Bc3 {[%clk 0:00:16.1]} 48. Bc5 {[%clk 0:00:09.1]} 48...
Kf4 {[%clk 0:00:14.7]} 49. Bxb4 {[%clk 0:00:09]} 49... Be5 {[%clk 0:00:15.5]}
50. Bd2+ {[%clk 0:00:06.5]} 50... Kf3 {[%clk 0:00:16]} 51. Be3 {[%clk
0:00:07.1]} 51... Bg3 {[%clk 0:00:09.3]} 52. fxg3 {[%clk 0:00:06.6]} 52... Kxe3
{[%clk 0:00:09.9]} 53. b4 {[%clk 0:00:07.2]} 53... Kf3 {[%clk 0:00:10.3]} 54. b5
{[%clk 0:00:07.3]} 54... e3 {[%clk 0:00:11.2]} 55. Rc3 {[%clk 0:00:07.8]} 55...
h2+ {[%clk 0:00:07.5]} 56. Kxh2 {[%clk 0:00:07.3]} 56... Kf2 {[%clk 0:00:08.4]}
57. Rxe3 {[%clk 0:00:07.9]} 57... Kxe3 {[%clk 0:00:08.8]} 58. b6 {[%clk
0:00:08.8]} 1-0

[Event "*** Titled Tuesday Blitz"]
[Site "Chess.com"]
[Date "2021.04.20"]
[Round "7"]
[White "Jumbo"]
[Black "I_Enchev"]
[Result "1/2-1/2"]
[WhiteElo "2794"]
[BlackElo "2622"]
[TimeControl "180+1"]
[EndTime "11:17:40 PDT"]
[Termination "Game drawn - insufficient material"]

1. d4 {[%clk 0:03:00.9]} 1... Nf6 {[%clk 0:02:59.3]} 2. c4 {[%clk 0:03:01.2]}
2... e5 {[%clk 0:02:59.4]} 3. Nf3 {[%clk 0:03:01.7]} 3... exd4 {[%clk
0:02:58.8]} 4. Nxd4 {[%clk 0:03:02.1]} 4... Bb4+ {[%clk 0:02:58.5]} 5. Bd2
{[%clk 0:02:57.6]} 5... Bxd2+ {[%clk 0:02:58]} 6. Qxd2 {[%clk 0:02:57.6]} 6...
O-O {[%clk 0:02:57.9]} 7. Nc3 {[%clk 0:02:57.4]} 7... d5 {[%clk 0:02:58.3]} 8.
e3 {[%clk 0:02:56.1]} 8... c5 {[%clk 0:02:56.9]} 9. Nf3 {[%clk 0:02:52.5]} 9...
dxc4 {[%clk 0:02:54.1]} 10. Qxd8 {[%clk 0:02:44.2]} 10... Rxd8 {[%clk 0:02:55]}
11. Bxc4 {[%clk 0:02:44.2]} 11... Nc6 {[%clk 0:02:53]} 12. Ke2 {[%clk
0:02:40.2]} 12... Bg4 {[%clk 0:02:52.1]} 13. h3 {[%clk 0:02:34.2]} 13... Bxf3+
{[%clk 0:02:47.7]} 14. gxf3 {[%clk 0:02:35.1]} 14... Kf8 {[%clk 0:02:35.6]} 15.
f4 {[%clk 0:02:34.4]} 15... b6 {[%clk 0:02:28.4]} 16. Rad1 {[%clk 0:02:19.6]}
16... Ke7 {[%clk 0:02:25]} 17. a3 {[%clk 0:02:12.5]} 17... Rac8 {[%clk
0:02:23.8]} 18. Rhg1 {[%clk 0:01:58.5]} 18... g6 {[%clk 0:02:23.1]} 19. Rxd8
{[%clk 0:01:56.8]} 19... Rxd8 {[%clk 0:02:22.4]} 20. Bb5 {[%clk 0:01:52.7]}
20... Rd6 {[%clk 0:02:13.2]} 21. h4 {[%clk 0:01:42.5]} 21... Nd8 {[%clk
0:02:04.1]} 22. e4 {[%clk 0:01:24.1]} 22... Rd4 {[%clk 0:02:01]} 23. Ke3 {[%clk
0:01:21]} 23... Ne6 {[%clk 0:01:52.2]} 24. f3 {[%clk 0:01:14.5]} 24... Nc7
{[%clk 0:01:48.3]} 25. Bd3 {[%clk 0:01:10]} 25... Nh5 {[%clk 0:01:45.1]} 26. Ne2
{[%clk 0:01:06.7]} 26... Rd8 {[%clk 0:01:44.6]} 27. Bc4 {[%clk 0:01:06]} 27...
Ne6 {[%clk 0:01:42.6]} 28. f5 {[%clk 0:00:49]} 28... Nc7 {[%clk 0:01:38.6]} 29.
fxg6 {[%clk 0:00:38.7]} 29... hxg6 {[%clk 0:01:34.6]} 30. f4 {[%clk 0:00:28.2]}
30... Nf6 {[%clk 0:01:28.4]} 31. e5 {[%clk 0:00:24.5]} 31... Nh5 {[%clk
0:01:21.2]} 32. Nc3 {[%clk 0:00:18.4]} 32... Ng7 {[%clk 0:01:19.4]} 33. Bd3
{[%clk 0:00:17.2]} 33... Rh8 {[%clk 0:01:16.9]} 34. Rh1 {[%clk 0:00:16.7]} 34...
Nge6 {[%clk 0:01:14.7]} 35. f5 {[%clk 0:00:14.5]} 35... gxf5 {[%clk 0:01:13.4]}
36. Bxf5 {[%clk 0:00:15.4]} 36... Nd4 {[%clk 0:01:13.5]} 37. Bg4 {[%clk
0:00:15.6]} 37... Nc6 {[%clk 0:01:03.4]} 38. Kf4 {[%clk 0:00:13.5]} 38... b5
{[%clk 0:01:02.4]} 39. Bf3 {[%clk 0:00:10.9]} 39... Nd4 {[%clk 0:01:01]} 40.
Nd5+ {[%clk 0:00:07.7]} 40... Nxd5+ {[%clk 0:01:00.7]} 41. Bxd5 {[%clk
0:00:08.6]} 41... Ne6+ {[%clk 0:00:59.3]} 42. Kf3 {[%clk 0:00:08]} 42... Rh5
{[%clk 0:00:57]} 43. Ke4 {[%clk 0:00:03.3]} 43... Ng5+ {[%clk 0:00:53.8]} 44.
Kf4 {[%clk 0:00:02.7]} 44... Ne6+ {[%clk 0:00:51.9]} 45. Ke4 {[%clk 0:00:03.2]}
45... Nf8 {[%clk 0:00:47]} 46. Bc6 {[%clk 0:00:01.4]} 46... a6 {[%clk
0:00:45.9]} 47. Bb7 {[%clk 0:00:01.4]} 47... a5 {[%clk 0:00:46.3]} 48. Ba6
{[%clk 0:00:01.8]} 48... b4 {[%clk 0:00:46]} 49. axb4 {[%clk 0:00:02]} 49...
axb4 {[%clk 0:00:46.4]} 50. Kd5 {[%clk 0:00:01.8]} 50... Nd7 {[%clk 0:00:43.3]}
51. Bb5 {[%clk 0:00:01.9]} 51... Rxe5+ {[%clk 0:00:40.8]} 52. Kc6 {[%clk
0:00:02.4]} 52... Rh5 {[%clk 0:00:40.1]} 53. Re1+ {[%clk 0:00:02.1]} 53... Ne5+
{[%clk 0:00:38.1]} 54. Kxc5 {[%clk 0:00:02.5]} 54... f6 {[%clk 0:00:37.8]} 55.
Re4 {[%clk 0:00:02.5]} 55... Kd8 {[%clk 0:00:34.5]} 56. Kxb4 {[%clk 0:00:02.9]}
56... Ng6 {[%clk 0:00:30.2]} 57. Be2 {[%clk 0:00:03.1]} 57... Rxh4 {[%clk
0:00:29.6]} 58. Rxh4 {[%clk 0:00:03.4]} 58... Nxh4 {[%clk 0:00:30.5]} 59. Bd3
{[%clk 0:00:03.8]} 59... Kc7 {[%clk 0:00:30.5]} 60. Be4 {[%clk 0:00:03.8]} 60...
f5 {[%clk 0:00:29.6]} 61. Bh1 {[%clk 0:00:04.2]} 61... f4 {[%clk 0:00:29.6]} 62.
Kc5 {[%clk 0:00:04.6]} 62... f3 {[%clk 0:00:30]} 63. Bxf3 {[%clk 0:00:05]} 63...
Nxf3 {[%clk 0:00:30.8]} 64. b4 {[%clk 0:00:04.5]} 64... Kb7 {[%clk 0:00:30.4]}
65. b5 {[%clk 0:00:05.4]} 65... Kc7 {[%clk 0:00:30.5]} 66. b6+ {[%clk
0:00:06.3]} 66... Kb7 {[%clk 0:00:30.9]} 67. Kc4 {[%clk 0:00:07.2]} 67... Nd4
{[%clk 0:00:30.8]} 68. Kd5 {[%clk 0:00:08.1]} 68... Kxb6 {[%clk 0:00:30.9]}
1/2-1/2

[Event "*** Titled Tuesday Blitz"]
[Site "Chess.com"]
[Date "2021.04.20"]
[Round "7"]
[White "enriquetejedor"]
[Black "CrushingKings"]
[Result "0-1"]
[WhiteElo "2621"]
[BlackElo "2515"]
[TimeControl "180+1"]
[EndTime "11:17:42 PDT"]
[Termination "CrushingKings won on time"]

1. e4 {[%clk 0:02:59.3]} 1... g6 {[%clk 0:03:00.2]} 2. h4 {[%clk 0:02:50]} 2...
h5 {[%clk 0:03:00]} 3. Nc3 {[%clk 0:02:49.3]} 3... Bg7 {[%clk 0:03:00.6]} 4. d4
{[%clk 0:02:46.8]} 4... c6 {[%clk 0:03:01.2]} 5. Bc4 {[%clk 0:02:43.4]} 5... d5
{[%clk 0:03:01]} 6. exd5 {[%clk 0:02:33.1]} 6... b5 {[%clk 0:03:01.2]} 7. Bb3
{[%clk 0:02:33.6]} 7... b4 {[%clk 0:03:01.7]} 8. Nce2 {[%clk 0:02:28.7]} 8...
cxd5 {[%clk 0:03:02.3]} 9. a3 {[%clk 0:02:29.6]} 9... bxa3 {[%clk 0:03:00.9]}
10. Rxa3 {[%clk 0:02:29.4]} 10... Nc6 {[%clk 0:03:01.8]} 11. Nf3 {[%clk
0:02:27.2]} 11... Nh6 {[%clk 0:02:58.2]} 12. Bxh6 {[%clk 0:02:19.3]} 12... Bxh6
{[%clk 0:02:57.1]} 13. Ba4 {[%clk 0:02:16]} 13... Bd7 {[%clk 0:02:55.7]} 14. Rc3
{[%clk 0:02:15.8]} 14... Qa5 {[%clk 0:02:14]} 15. Qa1 {[%clk 0:02:10.2]} 15...
O-O {[%clk 0:02:07.6]} 16. O-O {[%clk 0:02:07.2]} 16... Qb6 {[%clk 0:02:03.3]}
17. Rb3 {[%clk 0:02:05.5]} 17... Qc7 {[%clk 0:01:57.7]} 18. Ng5 {[%clk
0:01:55.8]} 18... Qd6 {[%clk 0:01:42]} 19. Qa3 {[%clk 0:01:40.4]} 19... Qf6
{[%clk 0:01:35.7]} 20. Rf3 {[%clk 0:01:37.5]} 20... Bf5 {[%clk 0:01:22.8]} 21.
Qc5 {[%clk 0:01:13.7]} 21... Rac8 {[%clk 0:01:10]} 22. Qxd5 {[%clk 0:01:11]}
22... Nb4 {[%clk 0:00:52.4]} 23. Qa5 {[%clk 0:01:05.7]} 23... Nxc2 {[%clk
0:00:49.6]} 24. Rd1 {[%clk 0:00:53.6]} 24... Qd6 {[%clk 0:00:34.5]} 25. Rxf5
{[%clk 0:00:14]} 25... gxf5 {[%clk 0:00:35.4]} 26. Qxf5 {[%clk 0:00:14]} 26...
Qg6 {[%clk 0:00:36.1]} 27. Qxg6+ {[%clk 0:00:06.6]} 27... fxg6 {[%clk 0:00:36]}
28. Ne6 {[%clk 0:00:07.5]} 28... Rf6 {[%clk 0:00:32.7]} 29. Bb3 {[%clk
0:00:05.1]} 29... Kh7 {[%clk 0:00:22.7]} 30. Nc5 {[%clk 0:00:02.3]} 30... Nxd4
{[%clk 0:00:19.3]} 31. Rxd4 {[%clk 0:00:03.2]} 31... Rxc5 {[%clk 0:00:19.4]} 32.
Rd7 {[%clk 0:00:03.5]} 32... Re5 {[%clk 0:00:17.5]} 33. Nc3 {[%clk 0:00:02.1]}
33... Re1+ {[%clk 0:00:17.3]} 34. Kh2 {[%clk 0:00:02.5]} 34... Rxf2 {[%clk
0:00:17.9]} 35. Nd5 {[%clk 0:00:02]} 35... Rxb2 {[%clk 0:00:12.8]} 36. Bc4
{[%clk 0:00:01.7]} 36... Rc2 {[%clk 0:00:09.4]} 37. Bb3 {[%clk 0:00:01.6]} 37...
Rce2 {[%clk 0:00:07.7]} 38. Bc4 {[%clk 0:00:01.4]} 38... Re4 {[%clk 0:00:07.3]}
39. Bd3 {[%clk 0:00:01.4]} 39... Rxh4+ {[%clk 0:00:07.4]} 40. Kg3 {[%clk
0:00:01.8]} 40... Rg4+ {[%clk 0:00:08]} 41. Kf2 {[%clk 0:00:02.3]} 41... Re5
{[%clk 0:00:07.2]} 42. Nf6+ {[%clk 0:00:02.4]} 42... Kg7 {[%clk 0:00:06.2]} 43.
Nxg4 {[%clk 0:00:03.3]} 43... hxg4 {[%clk 0:00:06.9]} 44. Rxa7 {[%clk
0:00:03.9]} 44... Be3+ {[%clk 0:00:07.3]} 45. Kg3 {[%clk 0:00:04.4]} 45... Bxa7
{[%clk 0:00:08.2]} 46. Kxg4 {[%clk 0:00:05]} 46... Kf6 {[%clk 0:00:09.1]} 47.
Kf3 {[%clk 0:00:05.2]} 47... Rg5 {[%clk 0:00:09.7]} 48. Bc4 {[%clk 0:00:04.2]}
48... Bb8 {[%clk 0:00:10.5]} 49. Ba2 {[%clk 0:00:03.1]} 49... Rg3+ {[%clk
0:00:10.1]} 50. Kf2 {[%clk 0:00:03]} 50... Kg5 {[%clk 0:00:11]} 51. Bg8 {[%clk
0:00:03.6]} 51... Kf4 {[%clk 0:00:11.9]} 52. Bd5 {[%clk 0:00:03.2]} 52... g5
{[%clk 0:00:12.8]} 53. Bc6 {[%clk 0:00:02.5]} 53... e5 {[%clk 0:00:13.7]} 54.
Bd5 {[%clk 0:00:02]} 54... Ba7+ {[%clk 0:00:14.6]} 55. Ke2 {[%clk 0:00:01.9]}
55... e4 {[%clk 0:00:15.5]} 56. Kf1 {[%clk 0:00:02.4]} 56... Rd3 {[%clk
0:00:13.6]} 57. Bc4 {[%clk 0:00:02.5]} 57... Ke3 {[%clk 0:00:14.1]} 58. Bxd3
{[%clk 0:00:01.9]} 58... exd3 {[%clk 0:00:15]} 59. Ke1 {[%clk 0:00:02.3]} 59...
Bb6 {[%clk 0:00:15.9]} 60. Kd1 {[%clk 0:00:01.9]} 60... Ba5 {[%clk 0:00:16.5]}
0-1

[Event "*** Titled Tuesday Blitz"]
[Site "Chess.com"]
[Date "2021.04.20"]
[Round "7"]
[White "C_K_G"]
[Black "alejanchess73"]
[Result "0-1"]
[WhiteElo "2079"]
[BlackElo "2435"]
[TimeControl "180+1"]
[EndTime "11:17:43 PDT"]
[Termination "alejanchess73 won on time"]

1. e4 {[%clk 0:02:46.3]} 1... e6 {[%clk 0:02:58.8]} 2. Nf3 {[%clk 0:02:46.5]}
2... d5 {[%clk 0:02:58.9]} 3. Nc3 {[%clk 0:02:45.4]} 3... Nf6 {[%clk 0:02:57.9]}
4. e5 {[%clk 0:02:45.2]} 4... Nfd7 {[%clk 0:02:57.4]} 5. d4 {[%clk 0:02:46.1]}
5... c5 {[%clk 0:02:56.5]} 6. Bg5 {[%clk 0:02:46.4]} 6... Qb6 {[%clk 0:02:54.3]}
7. dxc5 {[%clk 0:02:46.6]} 7... Bxc5 {[%clk 0:02:52.9]} 8. Qd2 {[%clk
0:02:46.8]} 8... Bb4 {[%clk 0:02:43.7]} 9. a3 {[%clk 0:02:40.7]} 9... Bxc3
{[%clk 0:02:42.3]} 10. Qxc3 {[%clk 0:02:40.7]} 10... Nc6 {[%clk 0:02:42.6]} 11.
Bd3 {[%clk 0:02:33.5]} 11... h6 {[%clk 0:02:42.7]} 12. Bf4 {[%clk 0:02:29.8]}
12... Qc5 {[%clk 0:02:39.5]} 13. Qd2 {[%clk 0:02:25.2]} 13... g5 {[%clk
0:02:37.4]} 14. Bg3 {[%clk 0:02:24.5]} 14... g4 {[%clk 0:02:36.4]} 15. Ng1
{[%clk 0:02:15.2]} 15... Ndxe5 {[%clk 0:02:35.5]} 16. Ne2 {[%clk 0:02:09.9]}
16... Nxd3+ {[%clk 0:02:34.3]} 17. Qxd3 {[%clk 0:02:09.8]} 17... Bd7 {[%clk
0:02:26.9]} 18. O-O {[%clk 0:02:07.6]} 18... O-O-O {[%clk 0:02:18]} 19. b4
{[%clk 0:02:06]} 19... Qc4 {[%clk 0:02:16.8]} 20. Qd2 {[%clk 0:02:02.4]} 20...
e5 {[%clk 0:02:13.6]} 21. Nc3 {[%clk 0:01:54.4]} 21... Be6 {[%clk 0:02:10.8]}
22. Rfe1 {[%clk 0:01:53.3]} 22... f6 {[%clk 0:02:10.1]} 23. Na4 {[%clk
0:01:46.7]} 23... b6 {[%clk 0:01:46]} 24. Nb2 {[%clk 0:01:42.1]} 24... Qd4
{[%clk 0:01:44.4]} 25. Qc1 {[%clk 0:01:41.8]} 25... b5 {[%clk 0:01:22.1]} 26. c3
{[%clk 0:01:39.6]} 26... Qb6 {[%clk 0:01:22]} 27. a4 {[%clk 0:01:39.8]} 27... a6
{[%clk 0:01:21.6]} 28. axb5 {[%clk 0:01:39.9]} 28... axb5 {[%clk 0:01:22.1]} 29.
Nd3 {[%clk 0:01:36.5]} 29... Nb8 {[%clk 0:01:08.3]} 30. Nc5 {[%clk 0:01:34.4]}
30... Rhe8 {[%clk 0:01:05]} 31. Qxh6 {[%clk 0:01:29.4]} 31... Bg8 {[%clk
0:01:02.3]} 32. Rxe5 {[%clk 0:01:25.3]} 32... Rxe5 {[%clk 0:01:01.4]} 33. Bxe5
{[%clk 0:01:24.6]} 33... d4 {[%clk 0:00:55.9]} 34. Bxd4 {[%clk 0:01:21.4]} 34...
Qd6 {[%clk 0:00:54.6]} 35. Qg7 {[%clk 0:01:14.2]} 35... Qc7 {[%clk 0:00:47.4]}
36. Qxf6 {[%clk 0:01:12.6]} 36... Re8 {[%clk 0:00:39.4]} 37. Qf5+ {[%clk
0:01:07]} 37... Kd8 {[%clk 0:00:39.8]} 38. Rd1 {[%clk 0:01:03.6]} 38... Nd7
{[%clk 0:00:36.9]} 39. Bf6+ {[%clk 0:01:01.8]} 39... Kc8 {[%clk 0:00:35.9]} 40.
Nxd7 {[%clk 0:01:01.4]} 40... Be6 {[%clk 0:00:31.8]} 41. Qg6 {[%clk 0:00:58.7]}
41... Bxd7 {[%clk 0:00:30.5]} 42. Bh4 {[%clk 0:00:39.6]} 42... Qxc3 {[%clk
0:00:23.3]} 43. h3 {[%clk 0:00:25.5]} 43... Re1+ {[%clk 0:00:21.5]} 44. Rxe1
{[%clk 0:00:24.5]} 44... Qxe1+ {[%clk 0:00:22.4]} 45. Kh2 {[%clk 0:00:23.9]}
45... gxh3 {[%clk 0:00:22.1]} 46. Qa6+ {[%clk 0:00:19.1]} 46... Kc7 {[%clk
0:00:21.5]} 47. Bg3+ {[%clk 0:00:18.4]} 47... Kd8 {[%clk 0:00:21.8]} 48. Qf6+
{[%clk 0:00:18.3]} 48... Kc8 {[%clk 0:00:20.5]} 49. Qa6+ {[%clk 0:00:18]} 49...
Kd8 {[%clk 0:00:20.6]} 50. Qa8+ {[%clk 0:00:17.7]} 50... Ke7 {[%clk 0:00:19.6]}
51. Bh4+ {[%clk 0:00:16.7]} 51... Kf7 {[%clk 0:00:18.9]} 52. Qf3+ {[%clk
0:00:14.9]} 52... Kg8 {[%clk 0:00:16.4]} 53. gxh3 {[%clk 0:00:12.2]} 53... Qe5+
{[%clk 0:00:15.1]} 54. Bg3 {[%clk 0:00:10.6]} 54... Qf5 {[%clk 0:00:15.5]} 55.
Qe3 {[%clk 0:00:01.9]} 55... Qf7 {[%clk 0:00:13.7]} 0-1